[Event "*** Titled Tuesday 3|2 Blitz"]
[Site "Chess.com"]
[Date "2016.06.07"]
[Round "7"]
[White "chessking2151"]
[Black "Generalas"]
[Result "1-0"]
[WhiteElo "2337"]
[BlackElo "2223"]
[TimeControl "180+2"]
[EndTime "18:23:24 PDT"]
[Termination "chessking2151 won by resignation"]

1. e4 {[%clk 0:03:01.9]} 1... e5 {[%clk 0:03:00.8]} 2. Nf3 {[%clk 0:03:00.9]}
2... Nc6 {[%clk 0:03:02.1]} 3. Bb5 {[%clk 0:02:59.6]} 3... a6 {[%clk 0:03:03.3]}
4. Ba4 {[%clk 0:02:40.1]} 4... Nf6 {[%clk 0:03:04.4]} 5. d3 {[%clk 0:02:31.6]}
5... b5 {[%clk 0:03:04.6]} 6. Bb3 {[%clk 0:02:31.7]} 6... Be7 {[%clk 0:03:06.2]}
7. a4 {[%clk 0:02:31.9]} 7... Bb7 {[%clk 0:03:06.5]} 8. Nc3 {[%clk 0:02:30.4]}
8... b4 {[%clk 0:02:58.2]} 9. Nd5 {[%clk 0:02:29.5]} 9... d6 {[%clk 0:02:58.3]}
10. O-O {[%clk 0:02:28.6]} 10... Nxd5 {[%clk 0:02:52.8]} 11. Bxd5 {[%clk
0:02:28.4]} 11... Na5 {[%clk 0:02:49.4]} 12. Bxb7 {[%clk 0:01:55.7]} 12... Nxb7
{[%clk 0:02:51.3]} 13. d4 {[%clk 0:01:55.7]} 13... Bf6 {[%clk 0:02:47.8]} 14.
dxe5 {[%clk 0:01:54.6]} 14... dxe5 {[%clk 0:02:48.6]} 15. Qe2 {[%clk 0:01:47.7]}
15... O-O {[%clk 0:02:44.8]} 16. Rd1 {[%clk 0:01:47.7]} 16... Qe7 {[%clk
0:02:41.4]} 17. b3 {[%clk 0:01:48.8]} 17... Nd6 {[%clk 0:02:12.2]} 18. Bb2
{[%clk 0:01:35.1]} 18... Qe6 {[%clk 0:02:09.9]} 19. Rd5 {[%clk 0:01:34]} 19...
c6 {[%clk 0:02:08.1]} 20. Rd2 {[%clk 0:01:32.7]} 20... Rfd8 {[%clk 0:01:59.7]}
21. Rad1 {[%clk 0:01:33.3]} 21... a5 {[%clk 0:01:58.3]} 22. h3 {[%clk
0:01:31.2]} 22... h6 {[%clk 0:01:50]} 23. Qe3 {[%clk 0:01:28.1]} 23... Kh7
{[%clk 0:00:48.7]} 24. Qb6 {[%clk 0:01:15.7]} 24... Nc8 {[%clk 0:00:38]} 25. Qc5
{[%clk 0:00:36.7]} 25... Rxd2 {[%clk 0:00:37.2]} 26. Rxd2 {[%clk 0:00:38.6]}
26... Nd6 {[%clk 0:00:37.9]} 27. Rxd6 {[%clk 0:00:35.7]} 1-0

[Event "*** Titled Tuesday 3|2 Blitz"]
[Site "Chess.com"]
[Date "2016.06.07"]
[Round "7"]
[White "gmjoey1"]
[Black "Evgeny_Levin"]
[Result "0-1"]
[WhiteElo "2535"]
[BlackElo "2703"]
[TimeControl "180+2"]
[EndTime "18:24:07 PDT"]
[Termination "Evgeny_Levin won on time"]

1. e4 {[%clk 0:03:01.9]} 1... Nf6 {[%clk 0:02:58]} 2. e5 {[%clk 0:03:01.6]} 2...
Nd5 {[%clk 0:02:58.5]} 3. c4 {[%clk 0:03:03.2]} 3... Nb6 {[%clk 0:02:58.9]} 4.
a4 {[%clk 0:03:04.8]} 4... a5 {[%clk 0:02:59.5]} 5. Nc3 {[%clk 0:02:58.6]} 5...
d6 {[%clk 0:02:59.5]} 6. exd6 {[%clk 0:02:58.5]} 6... exd6 {[%clk 0:03:01.4]} 7.
d4 {[%clk 0:02:59.9]} 7... Be7 {[%clk 0:03:02.1]} 8. Be3 {[%clk 0:02:53.7]} 8...
O-O {[%clk 0:03:02.3]} 9. Bd3 {[%clk 0:02:52.8]} 9... Nc6 {[%clk 0:03:00.4]} 10.
c5 {[%clk 0:02:29.6]} 10... dxc5 {[%clk 0:02:29.3]} 11. dxc5 {[%clk 0:02:27.7]}
11... Nb4 {[%clk 0:02:17.5]} 12. Bxh7+ {[%clk 0:02:11.4]} 12... Kxh7 {[%clk
0:02:19.4]} 13. cxb6 {[%clk 0:02:10]} 13... Nd3+ {[%clk 0:02:05.9]} 14. Ke2
{[%clk 0:01:58.6]} 14... Bf5 {[%clk 0:01:58.3]} 15. Nf3 {[%clk 0:01:59.1]} 15...
Kg8 {[%clk 0:01:49.6]} 16. Qb3 {[%clk 0:01:39.9]} 16... Nc5 {[%clk 0:01:33.3]}
17. Qd5 {[%clk 0:01:27.3]} 17... Bd3+ {[%clk 0:01:17.9]} 18. Ke1 {[%clk
0:01:28.1]} 18... cxb6 {[%clk 0:01:15.5]} 19. Rd1 {[%clk 0:01:21.9]} 19... Bf6
{[%clk 0:01:05.3]} 20. Nd4 {[%clk 0:00:19.3]} 20... Re8 {[%clk 0:01:00]} 21.
Qxd8 {[%clk 0:00:18.2]} 21... Raxd8 {[%clk 0:01:00]} 22. Nce2 {[%clk 0:00:16.6]}
22... Bxd4 {[%clk 0:00:51.8]} 23. Nxd4 {[%clk 0:00:16.5]} 23... Rxd4 {[%clk
0:00:52.4]} 24. h4 {[%clk 0:00:12]} 24... Rxa4 {[%clk 0:00:48.6]} 25. h5 {[%clk
0:00:13.9]} 25... Bc2 {[%clk 0:00:47.9]} 26. b3 {[%clk 0:00:06.7]} 26... Ra2
{[%clk 0:00:40.5]} 0-1

[Event "*** Titled Tuesday 3|2 Blitz"]
[Site "Chess.com"]
[Date "2016.06.07"]
[Round "7"]
[White "tactics321"]
[Black "rdclayton"]
[Result "1-0"]
[WhiteElo "2222"]
[BlackElo "2082"]
[TimeControl "180+2"]
[EndTime "18:24:24 PDT"]
[Termination "tactics321 won by resignation"]

1. Nf3 {[%clk 0:03:01.9]} 1... d5 {[%clk 0:03:00.1]} 2. c4 {[%clk 0:02:59.6]}
2... d4 {[%clk 0:02:46.2]} 3. e3 {[%clk 0:02:52.8]} 3... Nc6 {[%clk 0:02:44.2]}
4. exd4 {[%clk 0:02:48.8]} 4... Nxd4 {[%clk 0:02:46.1]} 5. Nxd4 {[%clk
0:02:49.2]} 5... Qxd4 {[%clk 0:02:47.5]} 6. Nc3 {[%clk 0:02:46.1]} 6... Bg4
{[%clk 0:02:44.4]} 7. Qa4+ {[%clk 0:02:43.7]} 7... Bd7 {[%clk 0:02:44.2]} 8. Qb3
{[%clk 0:02:35.6]} 8... Qb6 {[%clk 0:02:39.4]} 9. Qxb6 {[%clk 0:02:23.3]} 9...
axb6 {[%clk 0:02:41.3]} 10. d4 {[%clk 0:02:24]} 10... e6 {[%clk 0:02:24.4]} 11.
Bf4 {[%clk 0:02:19.7]} 11... c5 {[%clk 0:02:06.7]} 12. d5 {[%clk 0:02:17.2]}
12... Nf6 {[%clk 0:01:50.9]} 13. dxe6 {[%clk 0:02:14.9]} 13... Bxe6 {[%clk
0:01:52.8]} 14. Nb5 {[%clk 0:02:14.6]} 14... Rd8 {[%clk 0:01:22.5]} 15. Bc7
{[%clk 0:01:56.1]} 15... Rd7 {[%clk 0:01:16.2]} 16. Bxb6 {[%clk 0:01:55.8]}
16... Be7 {[%clk 0:01:17.6]} 17. Nc7+ {[%clk 0:01:52.8]} 17... Kf8 {[%clk
0:01:18.2]} 18. Nxe6+ {[%clk 0:01:53]} 18... fxe6 {[%clk 0:01:20.1]} 19. Be2
{[%clk 0:01:51.6]} 19... Kf7 {[%clk 0:01:20.5]} 20. O-O {[%clk 0:01:49.7]} 20...
Rd2 {[%clk 0:01:20.5]} 21. Bf3 {[%clk 0:01:46.6]} 21... Ra8 {[%clk 0:01:11.8]}
22. a4 {[%clk 0:01:40.4]} 22... Rxb2 {[%clk 0:01:10.4]} 23. a5 {[%clk
0:01:40.1]} 23... Nd7 {[%clk 0:00:42.7]} 24. Bc7 {[%clk 0:01:11.2]} 24... Rc8
{[%clk 0:00:31.9]} 25. Bg3 {[%clk 0:01:09.8]} 25... Bf6 {[%clk 0:00:28.6]} 26.
Rab1 {[%clk 0:01:06.1]} 26... Rxb1 {[%clk 0:00:24.2]} 27. Rxb1 {[%clk
0:01:06.9]} 27... Ne5 {[%clk 0:00:16.3]} 28. Rxb7+ {[%clk 0:01:06.6]} 28... Kf8
{[%clk 0:00:14.2]} 29. Be2 {[%clk 0:01:00.8]} 29... Ra8 {[%clk 0:00:13.8]} 30.
Rb5 {[%clk 0:00:59.1]} 30... Nc6 {[%clk 0:00:13.4]} 31. Rxc5 {[%clk 0:00:53.3]}
31... Nxa5 {[%clk 0:00:13.7]} 32. h3 {[%clk 0:00:51.4]} 32... Nb3 {[%clk
0:00:12.3]} 33. Rc7 {[%clk 0:00:51.2]} 33... Nd4 {[%clk 0:00:12.5]} 34. Bd3
{[%clk 0:00:51.5]} 34... Ra3 {[%clk 0:00:12.1]} 35. Be4 {[%clk 0:00:50.6]} 35...
h6 {[%clk 0:00:11.4]} 36. Bd6+ {[%clk 0:00:50.3]} 36... Ke8 {[%clk 0:00:07.7]}
37. Bxa3 {[%clk 0:00:49.9]} 1-0

[Event "*** Titled Tuesday 3|2 Blitz"]
[Site "Chess.com"]
[Date "2016.06.07"]
[Round "7"]
[White "aspired"]
[Black "oskariot"]
[Result "1-0"]
[WhiteElo "2486"]
[BlackElo "2416"]
[TimeControl "180+2"]
[EndTime "18:25:50 PDT"]
[Termination "aspired won on time"]

1. e4 {[%clk 0:03:01.9]} 1... c5 {[%clk 0:02:59.3]} 2. Nf3 {[%clk 0:03:02.7]}
2... d6 {[%clk 0:03:00]} 3. Bb5+ {[%clk 0:03:02.7]} 3... Nd7 {[%clk 0:03:00.6]}
4. O-O {[%clk 0:03:03]} 4... a6 {[%clk 0:03:01.7]} 5. Bd3 {[%clk 0:03:02.4]}
5... Ngf6 {[%clk 0:03:00.9]} 6. Re1 {[%clk 0:02:41.9]} 6... g6 {[%clk
0:03:01.3]} 7. c3 {[%clk 0:02:39.3]} 7... Bg7 {[%clk 0:03:02.4]} 8. Bc2 {[%clk
0:02:39.6]} 8... e5 {[%clk 0:03:03.5]} 9. d4 {[%clk 0:02:39.6]} 9... O-O {[%clk
0:03:05.4]} 10. a4 {[%clk 0:02:40.3]} 10... Re8 {[%clk 0:02:42.2]} 11. dxe5
{[%clk 0:02:20.9]} 11... Nxe5 {[%clk 0:02:33.3]} 12. Nxe5 {[%clk 0:02:20.8]}
12... dxe5 {[%clk 0:02:23.6]} 13. Qxd8 {[%clk 0:02:22.7]} 13... Rxd8 {[%clk
0:02:24.6]} 14. c4 {[%clk 0:02:24.6]} 14... Be6 {[%clk 0:02:18.6]} 15. b3 {[%clk
0:02:24.6]} 15... Rd4 {[%clk 0:01:27.6]} 16. Nc3 {[%clk 0:01:52.3]} 16... Bf8
{[%clk 0:01:11.5]} 17. Be3 {[%clk 0:01:50.1]} 17... a5 {[%clk 0:01:11.8]} 18.
Nd5 {[%clk 0:01:34.5]} 18... Nd7 {[%clk 0:01:12]} 19. Rad1 {[%clk 0:01:19.8]}
19... Rc8 {[%clk 0:00:58.8]} 20. Rf1 {[%clk 0:01:11.7]} 20... Kg7 {[%clk
0:00:54.9]} 21. f4 {[%clk 0:01:02.9]} 21... exf4 {[%clk 0:00:48.3]} 22. Rxd4
{[%clk 0:00:58.6]} 22... cxd4 {[%clk 0:00:47.7]} 23. Bxd4+ {[%clk 0:01:00.5]}
23... f6 {[%clk 0:00:44.9]} 24. Rxf4 {[%clk 0:01:00.3]} 24... Bc5 {[%clk
0:00:42.1]} 25. Bxc5 {[%clk 0:00:59.7]} 25... Rxc5 {[%clk 0:00:34.2]} 26. Kf2
{[%clk 0:00:53]} 26... g5 {[%clk 0:00:21.7]} 27. Rf3 {[%clk 0:00:50.2]} 27...
Ne5 {[%clk 0:00:23]} 28. Rc3 {[%clk 0:00:49.6]} 28... Kf7 {[%clk 0:00:23.9]} 29.
Ke3 {[%clk 0:00:48.9]} 29... h5 {[%clk 0:00:24.2]} 30. Kd4 {[%clk 0:00:48.6]}
30... Rc8 {[%clk 0:00:25.3]} 31. Bd1 {[%clk 0:00:46.6]} 31... Nc6+ {[%clk
0:00:25.7]} 32. Ke3 {[%clk 0:00:38.9]} 32... h4 {[%clk 0:00:22.2]} 33. Bh5+
{[%clk 0:00:37.9]} 33... Kg7 {[%clk 0:00:21]} 34. h3 {[%clk 0:00:39.1]} 34...
Ne5 {[%clk 0:00:18.2]} 35. Be2 {[%clk 0:00:39.2]} 35... Nd7 {[%clk 0:00:18.1]}
36. Kd4 {[%clk 0:00:39.7]} 36... Nc5 {[%clk 0:00:17.6]} 37. Rf3 {[%clk
0:00:32.7]} 37... Nd7 {[%clk 0:00:17.1]} 38. Bd3 {[%clk 0:00:28.9]} 38... Bf7
{[%clk 0:00:17.2]} 39. Bc2 {[%clk 0:00:28.8]} 39... Bg8 {[%clk 0:00:10.9]} 40.
Ne7 {[%clk 0:00:26.5]} 40... Rc7 {[%clk 0:00:10.2]} 41. Nxg8 {[%clk 0:00:25.7]}
41... Kxg8 {[%clk 0:00:10.9]} 42. Kd5 {[%clk 0:00:27.1]} 42... Kf7 {[%clk
0:00:11.3]} 43. Kd6 {[%clk 0:00:27.9]} 1-0

[Event "*** Titled Tuesday 3|2 Blitz"]
[Site "Chess.com"]
[Date "2016.06.07"]
[Round "7"]
[White "attack2mateU"]
[Black "AlexanderL"]
[Result "0-1"]
[WhiteElo "2431"]
[BlackElo "2578"]
[TimeControl "180+2"]
[EndTime "18:26:15 PDT"]
[Termination "AlexanderL won by resignation"]

1. e4 {[%clk 0:03:01.9]} 1... e6 {[%clk 0:03:00.9]} 2. Nf3 {[%clk 0:03:02.6]}
2... d5 {[%clk 0:03:01.9]} 3. Nc3 {[%clk 0:03:03.4]} 3... Nf6 {[%clk 0:03:02]}
4. e5 {[%clk 0:03:00.2]} 4... Nfd7 {[%clk 0:03:01.4]} 5. g3 {[%clk 0:02:57.4]}
5... c5 {[%clk 0:03:01.2]} 6. d3 {[%clk 0:02:58]} 6... Nc6 {[%clk 0:03:01.6]} 7.
Qe2 {[%clk 0:02:58.5]} 7... Qc7 {[%clk 0:02:42.7]} 8. Bf4 {[%clk 0:02:58.5]}
8... Nd4 {[%clk 0:02:40.8]} 9. Nxd4 {[%clk 0:02:57.8]} 9... cxd4 {[%clk
0:02:42.7]} 10. Nb1 {[%clk 0:02:19.6]} 10... Qb6 {[%clk 0:02:16.9]} 11. b3
{[%clk 0:02:15.6]} 11... Bb4+ {[%clk 0:02:11.3]} 12. Nd2 {[%clk 0:02:15.5]}
12... Bc3 {[%clk 0:02:09.3]} 13. Rd1 {[%clk 0:02:08.8]} 13... Qc5 {[%clk
0:01:49.8]} 14. Bg2 {[%clk 0:02:02.8]} 14... Qa3 {[%clk 0:01:49.9]} 15. O-O
{[%clk 0:02:03.8]} 15... Qxa2 {[%clk 0:01:48.4]} 16. Nf3 {[%clk 0:02:02.8]}
16... h6 {[%clk 0:01:45.8]} 17. h4 {[%clk 0:02:01]} 17... Qa5 {[%clk 0:01:40.3]}
18. h5 {[%clk 0:01:52.5]} 18... Qb4 {[%clk 0:01:37.5]} 19. Nd2 {[%clk
0:01:35.2]} 19... Qc5 {[%clk 0:01:25.9]} 20. Qg4 {[%clk 0:01:31.1]} 20... Rh7
{[%clk 0:01:25]} 21. Nf3 {[%clk 0:01:04]} 21... a5 {[%clk 0:01:23.2]} 22. Nh4
{[%clk 0:00:59.9]} 22... b5 {[%clk 0:01:20]} 23. Qe2 {[%clk 0:00:26]} 23... a4
{[%clk 0:01:16.6]} 24. bxa4 {[%clk 0:00:27.2]} 24... bxa4 {[%clk 0:01:17.8]} 25.
Bd2 {[%clk 0:00:28.4]} 25... a3 {[%clk 0:01:17.2]} 26. Bxc3 {[%clk 0:00:29.5]}
26... Qxc3 {[%clk 0:01:18.3]} 27. Ra1 {[%clk 0:00:29]} 27... a2 {[%clk 0:01:12]}
28. Nf3 {[%clk 0:00:29.2]} 28... Nc5 {[%clk 0:01:10.1]} 29. Rfc1 {[%clk
0:00:22.9]} 29... Bd7 {[%clk 0:01:07.7]} 30. Qd2 {[%clk 0:00:16.6]} 30... Qxd2
{[%clk 0:01:02.1]} 31. Nxd2 {[%clk 0:00:18.5]} 31... Ke7 {[%clk 0:00:57.8]} 32.
Nb3 {[%clk 0:00:17.5]} 32... Nxb3 {[%clk 0:00:58.5]} 33. cxb3 {[%clk 0:00:19.4]}
33... Rhh8 {[%clk 0:00:58.1]} 34. Rc2 {[%clk 0:00:20.5]} 34... Rhb8 {[%clk
0:00:58.7]} 35. Rcxa2 {[%clk 0:00:21.2]} 35... Rxa2 {[%clk 0:00:59.8]} 36. Rxa2
{[%clk 0:00:23.1]} 36... Rxb3 {[%clk 0:01:01]} 37. Bf1 {[%clk 0:00:24.9]} 37...
f6 {[%clk 0:00:55]} 38. f4 {[%clk 0:00:21.3]} 38... fxe5 {[%clk 0:00:53.3]} 39.
fxe5 {[%clk 0:00:23.2]} 39... Rb8 {[%clk 0:00:49.4]} 40. Ra7 {[%clk 0:00:22.8]}
40... Rf8 {[%clk 0:00:48]} 41. Be2 {[%clk 0:00:21.1]} 41... Rf5 {[%clk
0:00:44.9]} 42. Bd1 {[%clk 0:00:22.5]} 42... Kd8 {[%clk 0:00:46]} 43. Ra8+
{[%clk 0:00:23.2]} 43... Bc8 {[%clk 0:00:42.3]} 44. Ra7 {[%clk 0:00:23.4]} 44...
Rxe5 {[%clk 0:00:39.7]} 45. Kf2 {[%clk 0:00:23.3]} 45... Rg5 {[%clk 0:00:40.7]}
46. Bf3 {[%clk 0:00:17.8]} 46... Bd7 {[%clk 0:00:38.8]} 47. Rb7 {[%clk
0:00:18.1]} 47... Ke7 {[%clk 0:00:39.8]} 48. Ra7 {[%clk 0:00:19.5]} 48... Kd6
{[%clk 0:00:39.7]} 49. Ra6+ {[%clk 0:00:16.7]} 49... Bc6 {[%clk 0:00:40.1]} 50.
Bd1 {[%clk 0:00:18.3]} 50... Kc5 {[%clk 0:00:40.8]} 51. Ra7 {[%clk 0:00:18]}
51... e5 {[%clk 0:00:41.6]} 52. g4 {[%clk 0:00:17]} 52... e4 {[%clk 0:00:42.3]}
53. Kg3 {[%clk 0:00:15.1]} 53... exd3 {[%clk 0:00:36.3]} 54. Kf4 {[%clk
0:00:16.1]} 54... Bb5 {[%clk 0:00:36.9]} 55. Rc7+ {[%clk 0:00:15.8]} 55... Kb4
{[%clk 0:00:37.8]} 56. Rc8 {[%clk 0:00:11.2]} 56... d2 {[%clk 0:00:37.5]} 57.
Rc2 {[%clk 0:00:11.1]} 57... Ba4 {[%clk 0:00:36.3]} 58. Rxd2 {[%clk 0:00:12.5]}
58... Kc3 {[%clk 0:00:37.6]} 0-1

[Event "*** Titled Tuesday 3|2 Blitz"]
[Site "Chess.com"]
[Date "2016.06.07"]
[Round "7"]
[White "UltimateCrusher2"]
[Black "Viaje"]
[Result "1-0"]
[WhiteElo "2103"]
[BlackElo "2124"]
[TimeControl "180+2"]
[EndTime "18:26:15 PDT"]
[Termination "UltimateCrusher2 won by resignation"]

1. b3 {[%clk 0:03:01.9]} 1... e5 {[%clk 0:02:59.9]} 2. Bb2 {[%clk 0:03:02.2]}
2... Nc6 {[%clk 0:03:01.5]} 3. e3 {[%clk 0:02:55]} 3... Nf6 {[%clk 0:03:03]} 4.
Nf3 {[%clk 0:02:48.7]} 4... e4 {[%clk 0:03:02.3]} 5. Nd4 {[%clk 0:02:49.5]} 5...
Bc5 {[%clk 0:03:02]} 6. c4 {[%clk 0:02:32.2]} 6... O-O {[%clk 0:02:59.9]} 7. g4
{[%clk 0:02:33.1]} 7... d5 {[%clk 0:02:54.7]} 8. g5 {[%clk 0:02:34.2]} 8... Ne8
{[%clk 0:02:49.2]} 9. cxd5 {[%clk 0:02:32.6]} 9... Qxd5 {[%clk 0:02:48.5]} 10.
Nc3 {[%clk 0:02:30]} 10... Qxg5 {[%clk 0:02:47.5]} 11. Nxe4 {[%clk 0:02:29.1]}
11... Qd5 {[%clk 0:02:46.3]} 12. Bg2 {[%clk 0:02:30.5]} 12... Bxd4 {[%clk
0:02:39.5]} 13. Bxd4 {[%clk 0:02:16.8]} 13... Qf5 {[%clk 0:02:37.8]} 14. Bc3
{[%clk 0:02:09.6]} 14... Be6 {[%clk 0:02:33.8]} 15. Qe2 {[%clk 0:02:04.4]} 15...
a5 {[%clk 0:02:32.7]} 16. Rg1 {[%clk 0:02:03.4]} 16... a4 {[%clk 0:02:28.3]} 17.
b4 {[%clk 0:02:04.2]} 17... Kh8 {[%clk 0:01:44.6]} 18. Ng3 {[%clk 0:02:00.4]}
18... Qg4 {[%clk 0:01:42.6]} 19. Bxc6 {[%clk 0:01:42.1]} 19... bxc6 {[%clk
0:01:37.1]} 20. Qxg4 {[%clk 0:01:31.6]} 20... Bxg4 {[%clk 0:01:39]} 21. Ne4
{[%clk 0:01:26.8]} 21... Bf5 {[%clk 0:01:32.6]} 22. Nc5 {[%clk 0:01:18]} 22...
f6 {[%clk 0:01:31.3]} 23. a3 {[%clk 0:01:16.8]} 23... Nd6 {[%clk 0:01:30.6]} 24.
f4 {[%clk 0:01:07.9]} 24... Kg8 {[%clk 0:01:29.5]} 25. Ke2 {[%clk 0:01:05.2]}
25... Kf7 {[%clk 0:01:29.5]} 26. Rg3 {[%clk 0:01:03.9]} 26... Ne4 {[%clk
0:01:27.3]} 27. Nxe4 {[%clk 0:01:04.1]} 27... Bxe4 {[%clk 0:01:28.4]} 28. Rag1
{[%clk 0:01:04.3]} 28... g6 {[%clk 0:01:27.6]} 29. h4 {[%clk 0:01:02.6]} 29...
h5 {[%clk 0:01:24.5]} 30. d3 {[%clk 0:01:03.3]} 30... Bf5 {[%clk 0:01:24.8]} 31.
Bd4 {[%clk 0:00:57.5]} 31... Rfd8 {[%clk 0:01:22.1]} 32. Rc1 {[%clk 0:00:51.3]}
32... Rd6 {[%clk 0:01:20.5]} 33. Rc5 {[%clk 0:00:50.1]} 33... Re8 {[%clk
0:01:18.9]} 34. Kd2 {[%clk 0:00:48.5]} 34... Ree6 {[%clk 0:01:11.5]} 35. Ra5
{[%clk 0:00:48.7]} 35... Bg4 {[%clk 0:01:01]} 36. Rxa4 {[%clk 0:00:48]} 36...
Rd5 {[%clk 0:01:01.2]} 37. Rg1 {[%clk 0:00:46.2]} 37... g5 {[%clk 0:00:59.7]}
38. hxg5 {[%clk 0:00:46.3]} 38... fxg5 {[%clk 0:01:01.6]} 39. fxg5 {[%clk
0:00:45.4]} 39... Rxg5 {[%clk 0:01:02.4]} 40. Ra7 {[%clk 0:00:46.4]} 40... Re7
{[%clk 0:00:57.7]} 41. Rc1 {[%clk 0:00:47.1]} 41... Rg6 {[%clk 0:00:57.7]} 42.
Ra6 {[%clk 0:00:39.8]} 42... h4 {[%clk 0:00:58.1]} 43. Raxc6 {[%clk 0:00:39.7]}
43... Rxc6 {[%clk 0:00:46.7]} 44. Rxc6 {[%clk 0:00:41.6]} 44... Re6 {[%clk
0:00:45.8]} 45. Rxc7+ {[%clk 0:00:37.4]} 45... Kg6 {[%clk 0:00:46.7]} 46. Rc8
{[%clk 0:00:33.3]} 46... Ra6 {[%clk 0:00:41.2]} 47. Rc3 {[%clk 0:00:30.6]} 47...
h3 {[%clk 0:00:41.1]} 48. Be5 {[%clk 0:00:26.4]} 48... Ra8 {[%clk 0:00:33.9]}
49. b5 {[%clk 0:00:26.8]} 49... Rf8 {[%clk 0:00:34.6]} 50. Rc1 {[%clk
0:00:21.4]} 50... Rf2+ {[%clk 0:00:33]} 51. Kc3 {[%clk 0:00:22.6]} 51... Kf5
{[%clk 0:00:30.4]} 52. Bf4 {[%clk 0:00:22.2]} 52... Bf3 {[%clk 0:00:28.5]} 53.
a4 {[%clk 0:00:21.7]} 53... Bb7 {[%clk 0:00:29.2]} 54. a5 {[%clk 0:00:22.6]}
54... Ra2 {[%clk 0:00:28.6]} 55. a6 {[%clk 0:00:23.4]} 55... Bxa6 {[%clk
0:00:29.2]} 56. bxa6 {[%clk 0:00:23.7]} 56... Rxa6 {[%clk 0:00:31.1]} 57. Rg1
{[%clk 0:00:23.7]} 57... Ra3+ {[%clk 0:00:30]} 58. Kd4 {[%clk 0:00:23.9]} 58...
Ra4+ {[%clk 0:00:30.4]} 59. Kc5 {[%clk 0:00:23]} 59... Ra3 {[%clk 0:00:30.4]}
60. Kc4 {[%clk 0:00:22.5]} 60... Ra4+ {[%clk 0:00:31.1]} 61. Kb3 {[%clk
0:00:24.2]} 61... Ra6 {[%clk 0:00:31.2]} 62. Rg5+ {[%clk 0:00:24.9]} 62... Kf6
{[%clk 0:00:32.5]} 63. Rh5 {[%clk 0:00:26.3]} 63... Rb6+ {[%clk 0:00:33.3]} 64.
Kc3 {[%clk 0:00:27.7]} 64... Rc6+ {[%clk 0:00:33.8]} 65. Kd2 {[%clk 0:00:28.8]}
1-0